[Event "Early-Titled-Tuesday-Blitz-March-19-2024"]
[Site "Chess.com"]
[Date "2024.03.19"]
[Round "5"]
[White "Elegance_Riks"]
[Black "yosephtaher"]
[Result "1/2-1/2"]
[WhiteElo "2769"]
[BlackElo "2958"]
[TimeControl "180+1"]
[EndTime "8:58:06 PDT"]
[Termination "Game drawn by repetition"]

1. Nf3 {[%clk 0:03:00.9]} 1... c5 {[%clk 0:02:55.6]} 2. c4 {[%clk 0:02:59.4]}
2... g6 {[%clk 0:02:55.5]} 3. d4 {[%clk 0:02:58.6]} 3... cxd4 {[%clk 0:02:56.4]}
4. Nxd4 {[%clk 0:02:59.1]} 4... Bg7 {[%clk 0:02:56.6]} 5. e4 {[%clk 0:02:59.4]}
5... Nc6 {[%clk 0:02:57.2]} 6. Be3 {[%clk 0:02:59.2]} 6... Nf6 {[%clk
0:02:57.9]} 7. Nc3 {[%clk 0:02:58.4]} 7... O-O {[%clk 0:02:58.6]} 8. Be2 {[%clk
0:02:58.2]} 8... d6 {[%clk 0:02:59.3]} 9. O-O {[%clk 0:02:58]} 9... Bd7 {[%clk
0:03:00]} 10. h3 {[%clk 0:02:51.1]} 10... a5 {[%clk 0:02:59.8]} 11. Qc2 {[%clk
0:02:48.9]} 11... a4 {[%clk 0:02:59.6]} 12. Rfd1 {[%clk 0:02:44.9]} 12... Qa5
{[%clk 0:02:59.8]} 13. Rac1 {[%clk 0:02:35.5]} 13... Rfc8 {[%clk 0:02:59.6]} 14.
Ndb5 {[%clk 0:02:29.9]} 14... Ne5 {[%clk 0:02:58]} 15. b3 {[%clk 0:02:25.8]}
15... axb3 {[%clk 0:02:56.4]} 16. axb3 {[%clk 0:02:26.7]} 16... Bxb5 {[%clk
0:02:49.6]} 17. Nxb5 {[%clk 0:02:26.5]} 17... Qa2 {[%clk 0:02:49.3]} 18. Nc3
{[%clk 0:02:09.6]} 18... Qxc2 {[%clk 0:02:46]} 19. Rxc2 {[%clk 0:02:10.5]} 19...
Nc6 {[%clk 0:02:43.3]} 20. Na4 {[%clk 0:01:49.7]} 20... Ra5 {[%clk 0:01:57.6]}
21. f3 {[%clk 0:01:36.8]} 21... Nd7 {[%clk 0:01:55.8]} 22. Kf2 {[%clk 0:01:27]}
22... Nb4 {[%clk 0:01:50.1]} 23. Rcd2 {[%clk 0:01:16.4]} 23... Na6 {[%clk
0:01:49]} 24. Nb6 {[%clk 0:01:10.6]} 24... Nxb6 {[%clk 0:01:47]} 25. Bxb6 {[%clk
0:01:11.5]} 25... Ra3 {[%clk 0:01:47.7]} 26. Rb1 {[%clk 0:01:07.8]} 26... Nc5
{[%clk 0:01:48.1]} 27. Bxc5 {[%clk 0:00:42.5]} 27... dxc5 {[%clk 0:01:49]} 28.
Rd7 {[%clk 0:00:42.5]} 28... Bd4+ {[%clk 0:01:47.7]} 29. Kf1 {[%clk 0:00:40.4]}
29... Ra2 {[%clk 0:01:40.5]} 30. Rxb7 {[%clk 0:00:36.4]} 30... Rca8 {[%clk
0:01:40.8]} 31. b4 {[%clk 0:00:36.4]} 31... Rc2 {[%clk 0:01:31]} 32. bxc5 {[%clk
0:00:25.1]} 32... Raa2 {[%clk 0:01:30.7]} 33. Re1 {[%clk 0:00:24.5]} 33... Bxc5
{[%clk 0:01:30.3]} 34. Rbb1 {[%clk 0:00:20.4]} 34... Be3 {[%clk 0:01:27.2]} 35.
Ra1 {[%clk 0:00:20.6]} 35... Rxe2 {[%clk 0:01:26.7]} 36. Rxa2 {[%clk 0:00:20.2]}
36... Rxa2 {[%clk 0:01:27.4]} 37. Rxe3 {[%clk 0:00:20.4]} 37... Rc2 {[%clk
0:01:27.7]} 38. Re2 {[%clk 0:00:19.9]} 38... Rxc4 {[%clk 0:01:28]} 39. Kf2
{[%clk 0:00:20.5]} 39... Kg7 {[%clk 0:01:28.3]} 40. h4 {[%clk 0:00:20.9]} 40...
Kf6 {[%clk 0:01:28.5]} 41. Kg3 {[%clk 0:00:21.4]} 41... Ke5 {[%clk 0:01:28.7]}
42. Rd2 {[%clk 0:00:21.9]} 42... Rc7 {[%clk 0:01:27.9]} 43. Rd5+ {[%clk
0:00:22]} 43... Ke6 {[%clk 0:01:28.2]} 44. Rd2 {[%clk 0:00:22.8]} 44... f5
{[%clk 0:01:28.5]} 45. exf5+ {[%clk 0:00:22.6]} 45... gxf5 {[%clk 0:01:29.4]}
46. Re2+ {[%clk 0:00:22.6]} 46... Kf6 {[%clk 0:01:29.6]} 47. Ra2 {[%clk
0:00:21.1]} 47... Rc6 {[%clk 0:01:28.9]} 48. Ra7 {[%clk 0:00:21.3]} 48... h6
{[%clk 0:01:25.7]} 49. Ra8 {[%clk 0:00:21.6]} 49... e5 {[%clk 0:01:25.2]} 50.
Rf8+ {[%clk 0:00:21.7]} 50... Ke6 {[%clk 0:01:25.5]} 51. Re8+ {[%clk 0:00:20.7]}
51... Kd5 {[%clk 0:01:26.1]} 52. Rf8 {[%clk 0:00:20.9]} 52... f4+ {[%clk
0:01:25.9]} 53. Kh3 {[%clk 0:00:21.4]} 53... Kd4 {[%clk 0:01:20.9]} 54. Rd8+
{[%clk 0:00:18]} 54... Ke3 {[%clk 0:01:19.9]} 55. Re8 {[%clk 0:00:18.3]} 55...
Rc5 {[%clk 0:01:19.7]} 56. Kg4 {[%clk 0:00:18.7]} 56... Kf2 {[%clk 0:01:19.9]}
57. Re6 {[%clk 0:00:17.8]} 57... h5+ {[%clk 0:00:51.2]} 58. Kxh5 {[%clk
0:00:18]} 58... e4+ {[%clk 0:00:34.3]} 59. Kg4 {[%clk 0:00:18.2]} 59... e3
{[%clk 0:00:34.6]} 60. Kxf4 {[%clk 0:00:18.7]} 60... Rc4+ {[%clk 0:00:33.7]} 61.
Kg5 {[%clk 0:00:16.8]} 61... Rc5+ {[%clk 0:00:34.3]} 62. Kg6 {[%clk 0:00:15]}
62... e2 {[%clk 0:00:34.3]} 63. Rxe2+ {[%clk 0:00:15.2]} 63... Kxe2 {[%clk
0:00:34.7]} 64. h5 {[%clk 0:00:16.1]} 64... Rc6+ {[%clk 0:00:34.9]} 65. Kg7
{[%clk 0:00:16.7]} 65... Rc7+ {[%clk 0:00:35.1]} 66. Kg6 {[%clk 0:00:16.7]}
66... Rc6+ {[%clk 0:00:35.5]} 67. Kg7 {[%clk 0:00:17.2]} 67... Rc7+ {[%clk
0:00:36.1]} 68. Kg6 {[%clk 0:00:17.8]} 68... Rc6+ {[%clk 0:00:36.7]} 1/2-1/2

[Event "Early-Titled-Tuesday-Blitz-March-19-2024"]
[Site "Chess.com"]
[Date "2024.03.19"]
[Round "5"]
[White "Goryachkina"]
[Black "Blitzstream"]
[Result "0-1"]
[WhiteElo "2643"]
[BlackElo "2830"]
[TimeControl "180+1"]
[EndTime "8:58:08 PDT"]
[Termination "Blitzstream won by resignation"]

1. e4 {[%clk 0:02:59.3]} 1... c5 {[%clk 0:03:00.2]} 2. Nf3 {[%clk 0:02:58.9]}
2... d6 {[%clk 0:03:00.5]} 3. d4 {[%clk 0:02:58.4]} 3... cxd4 {[%clk 0:03:01.4]}
4. Qxd4 {[%clk 0:02:58.4]} 4... Nc6 {[%clk 0:02:59.4]} 5. Qd3 {[%clk 0:02:58.2]}
5... Nf6 {[%clk 0:02:59.4]} 6. Nc3 {[%clk 0:02:58]} 6... g6 {[%clk 0:03:00]} 7.
Be2 {[%clk 0:02:57.9]} 7... Bg7 {[%clk 0:03:00.4]} 8. O-O {[%clk 0:02:57.8]}
8... O-O {[%clk 0:03:00.7]} 9. Bg5 {[%clk 0:02:54.3]} 9... Bg4 {[%clk
0:03:00.6]} 10. h3 {[%clk 0:02:38]} 10... Bxf3 {[%clk 0:02:59]} 11. Qxf3 {[%clk
0:02:31.6]} 11... Nd4 {[%clk 0:02:58.5]} 12. Qd3 {[%clk 0:02:31.4]} 12... Nxe2+
{[%clk 0:02:58.1]} 13. Nxe2 {[%clk 0:02:26.3]} 13... Rc8 {[%clk 0:02:53.4]} 14.
c3 {[%clk 0:02:25.3]} 14... Qb6 {[%clk 0:02:52.9]} 15. Qc2 {[%clk 0:02:16.4]}
15... Rc4 {[%clk 0:02:39.9]} 16. Nf4 {[%clk 0:01:54.3]} 16... e6 {[%clk
0:02:21.2]} 17. Bxf6 {[%clk 0:01:35.4]} 17... Bxf6 {[%clk 0:02:20.4]} 18. Rad1
{[%clk 0:01:34.3]} 18... Qc6 {[%clk 0:02:15.1]} 19. Rfe1 {[%clk 0:01:30.5]}
19... b5 {[%clk 0:02:10.4]} 20. a3 {[%clk 0:01:18.6]} 20... a5 {[%clk 0:02:09]}
21. Qe2 {[%clk 0:01:09.1]} 21... Rc8 {[%clk 0:02:00]} 22. Nd3 {[%clk 0:01:07.6]}
22... Bg7 {[%clk 0:01:48.2]} 23. Qe3 {[%clk 0:01:03]} 23... Rd8 {[%clk
0:01:22.6]} 24. Rd2 {[%clk 0:00:55.6]} 24... h5 {[%clk 0:01:19.2]} 25. Rdd1
{[%clk 0:00:45.2]} 25... d5 {[%clk 0:01:07.9]} 26. exd5 {[%clk 0:00:31.7]} 26...
Rxd5 {[%clk 0:01:08.8]} 27. Nc1 {[%clk 0:00:18.8]} 27... b4 {[%clk 0:00:58.8]}
28. axb4 {[%clk 0:00:18.2]} 28... axb4 {[%clk 0:00:57.8]} 29. Rxd5 {[%clk
0:00:18.2]} 29... Qxd5 {[%clk 0:00:58.7]} 30. cxb4 {[%clk 0:00:07.8]} 30... Rxb4
{[%clk 0:00:50.9]} 31. b3 {[%clk 0:00:07.9]} 31... Rd4 {[%clk 0:00:43.7]} 32.
Qe2 {[%clk 0:00:07]} 32... Rd2 {[%clk 0:00:40.5]} 33. Qc4 {[%clk 0:00:06.9]}
33... Qf5 {[%clk 0:00:25.5]} 34. Rf1 {[%clk 0:00:05.8]} 34... Bd4 {[%clk
0:00:25.2]} 35. Ne2 {[%clk 0:00:05]} 35... Bb6 {[%clk 0:00:19.7]} 36. Qc8+
{[%clk 0:00:04.8]} 36... Kh7 {[%clk 0:00:19.2]} 37. Qc6 {[%clk 0:00:05]} 37...
Qc5 {[%clk 0:00:09.7]} 38. Qxc5 {[%clk 0:00:05]} 38... Bxc5 {[%clk 0:00:10.2]}
39. Nc3 {[%clk 0:00:04.8]} 39... Bd4 {[%clk 0:00:06.1]} 40. Ne4 {[%clk
0:00:04.6]} 40... Rb2 {[%clk 0:00:05.8]} 41. Nd6 {[%clk 0:00:04.9]} 41... Kg7
{[%clk 0:00:04.8]} 42. Ne4 {[%clk 0:00:05.2]} 42... Rxb3 {[%clk 0:00:05]} 43.
Rd1 {[%clk 0:00:05.4]} 43... e5 {[%clk 0:00:05.5]} 44. Kf1 {[%clk 0:00:05.6]}
44... Rb2 {[%clk 0:00:06]} 45. Rd2 {[%clk 0:00:05.7]} 45... Rb1+ {[%clk
0:00:05.6]} 46. Ke2 {[%clk 0:00:06.2]} 46... f5 {[%clk 0:00:06.2]} 47. Nd6
{[%clk 0:00:06.2]} 47... Rc1 {[%clk 0:00:04.7]} 48. Nb5 {[%clk 0:00:06.2]} 48...
Bc5 {[%clk 0:00:04.8]} 49. Rd7+ {[%clk 0:00:06.1]} 49... Kf6 {[%clk 0:00:05.2]}
50. Rd2 {[%clk 0:00:06.3]} 50... e4 {[%clk 0:00:05.4]} 51. Nd6 {[%clk 0:00:06]}
51... Bb4 {[%clk 0:00:04.6]} 52. Rb2 {[%clk 0:00:04.2]} 52... Bxd6 {[%clk
0:00:02.7]} 0-1

[Event "Early-Titled-Tuesday-Blitz-March-19-2024"]
[Site "Chess.com"]
[Date "2024.03.19"]
[Round "5"]
[White "nabukatnezarr"]
[Black "Ati1517"]
[Result "1-0"]
[WhiteElo "2575"]
[BlackElo "2245"]
[TimeControl "180+1"]
[EndTime "8:58:12 PDT"]
[Termination "nabukatnezarr won on time"]

1. Nf3 {[%clk 0:02:47.8]} 1... Nf6 {[%clk 0:02:58.9]} 2. g3 {[%clk 0:02:44]}
2... g6 {[%clk 0:02:59.1]} 3. b3 {[%clk 0:02:43.8]} 3... Bg7 {[%clk 0:02:59.2]}
4. Bb2 {[%clk 0:02:44.6]} 4... O-O {[%clk 0:02:58.9]} 5. c4 {[%clk 0:02:45.2]}
5... d6 {[%clk 0:02:59.4]} 6. d4 {[%clk 0:02:41.3]} 6... c6 {[%clk 0:02:56.1]}
7. Bg2 {[%clk 0:02:40.8]} 7... Nbd7 {[%clk 0:02:56.2]} 8. O-O {[%clk 0:02:39.4]}
8... Qc7 {[%clk 0:02:56.6]} 9. Nbd2 {[%clk 0:02:35.2]} 9... e5 {[%clk
0:02:46.4]} 10. e3 {[%clk 0:02:31.1]} 10... e4 {[%clk 0:02:37.2]} 11. Ng5 {[%clk
0:02:20.5]} 11... d5 {[%clk 0:02:37.3]} 12. cxd5 {[%clk 0:02:21.3]} 12... cxd5
{[%clk 0:02:37.6]} 13. Rc1 {[%clk 0:02:21.5]} 13... Qd8 {[%clk 0:02:37.5]} 14.
Qc2 {[%clk 0:02:17.5]} 14... h6 {[%clk 0:02:30.7]} 15. Nh3 {[%clk 0:02:16.7]}
15... b6 {[%clk 0:02:30.8]} 16. Qc7 {[%clk 0:02:09.3]} 16... Ba6 {[%clk
0:02:26.2]} 17. Qxd8 {[%clk 0:02:06.6]} 17... Rfxd8 {[%clk 0:02:24.2]} 18. Rfe1
{[%clk 0:02:07.5]} 18... Rac8 {[%clk 0:02:22.9]} 19. Nf4 {[%clk 0:01:46.7]}
19... g5 {[%clk 0:02:20.2]} 20. Ne2 {[%clk 0:01:39.3]} 20... Rxc1 {[%clk
0:02:18.9]} 21. Nxc1 {[%clk 0:01:37.3]} 21... Rc8 {[%clk 0:02:18.5]} 22. Ba3
{[%clk 0:01:10.4]} 22... Rc2 {[%clk 0:02:16.3]} 23. Nb1 {[%clk 0:01:08.4]} 23...
Ng4 {[%clk 0:02:10.8]} 24. f3 {[%clk 0:01:02.1]} 24... exf3 {[%clk 0:02:00.3]}
25. Bxf3 {[%clk 0:01:01]} 25... Nxh2 {[%clk 0:01:59.6]} 26. Bxd5 {[%clk
0:00:58.2]} 26... Nf6 {[%clk 0:01:51.1]} 27. Ba8 {[%clk 0:00:43.9]} 27... Nhg4
{[%clk 0:01:48.4]} 28. Bd6 {[%clk 0:00:32.7]} 28... Nf2 {[%clk 0:01:36.1]} 29.
Na3 {[%clk 0:00:28.4]} 29... Nh3+ {[%clk 0:01:34.4]} 30. Kh1 {[%clk 0:00:28.4]}
30... Rb2 {[%clk 0:01:30.6]} 31. Bg2 {[%clk 0:00:26.5]} 31... Ng4 {[%clk
0:01:24.8]} 32. Nc4 {[%clk 0:00:17.4]} 32... Bxc4 {[%clk 0:01:05.6]} 33. bxc4
{[%clk 0:00:18.3]} 33... Nhf2+ {[%clk 0:01:05.8]} 34. Kg1 {[%clk 0:00:18.2]}
34... Rd2 {[%clk 0:00:53]} 35. c5 {[%clk 0:00:17.8]} 35... bxc5 {[%clk
0:00:51.7]} 36. dxc5 {[%clk 0:00:18.7]} 36... Nd3 {[%clk 0:00:50.5]} 37. Nxd3
{[%clk 0:00:18.3]} 37... Rxd3 {[%clk 0:00:51]} 38. Be4 {[%clk 0:00:16.5]} 38...
Rc3 {[%clk 0:00:47.7]} 39. Bb7 {[%clk 0:00:12.4]} 39... Bf8 {[%clk 0:00:45.6]}
40. Bxf8 {[%clk 0:00:12.2]} 40... Kxf8 {[%clk 0:00:46.5]} 41. c6 {[%clk
0:00:13.1]} 41... Nxe3 {[%clk 0:00:46.2]} 42. Rxe3 {[%clk 0:00:12.7]} 42... Rc1+
{[%clk 0:00:42.7]} 43. Kf2 {[%clk 0:00:13]} 43... g4 {[%clk 0:00:42.7]} 44. Re4
{[%clk 0:00:12.6]} 44... Rc2+ {[%clk 0:00:43.2]} 45. Ke3 {[%clk 0:00:12.8]}
45... f5 {[%clk 0:00:44.1]} 46. Re5 {[%clk 0:00:12.4]} 46... Rc3+ {[%clk
0:00:44.5]} 47. Kd4 {[%clk 0:00:11.4]} 47... Rc2 {[%clk 0:00:42.7]} 48. Rxf5+
{[%clk 0:00:11.5]} 48... Ke7 {[%clk 0:00:43.1]} 49. Rf4 {[%clk 0:00:11.1]} 49...
Rd2+ {[%clk 0:00:44]} 50. Kc3 {[%clk 0:00:11.1]} 50... Rxa2 {[%clk 0:00:44.3]}
51. c7 {[%clk 0:00:10.8]} 51... Ra1 {[%clk 0:00:43.8]} 52. c8=Q {[%clk
0:00:11.2]} 52... Rc1+ {[%clk 0:00:36.7]} 53. Kd4 {[%clk 0:00:10.9]} 53... Rxc8
{[%clk 0:00:37.6]} 54. Bxc8 {[%clk 0:00:11.6]} 54... Kd6 {[%clk 0:00:38.5]} 55.
Bxg4 {[%clk 0:00:11.8]} 55... Kc7 {[%clk 0:00:39.4]} 56. Rf6 {[%clk 0:00:12.2]}
56... a5 {[%clk 0:00:39.8]} 57. Rxh6 {[%clk 0:00:12.7]} 57... a4 {[%clk
0:00:40.7]} 58. Kc3 {[%clk 0:00:13.2]} 58... a3 {[%clk 0:00:41.6]} 59. Kb3
{[%clk 0:00:13.8]} 59... a2 {[%clk 0:00:42.5]} 60. Kxa2 {[%clk 0:00:14.5]} 1-0

[Event "Early-Titled-Tuesday-Blitz-March-19-2024"]
[Site "Chess.com"]
[Date "2024.03.19"]
[Round "5"]
[White "chess_blitz00"]
[Black "ZenBull"]
[Result "0-1"]
[WhiteElo "2456"]
[BlackElo "2327"]
[TimeControl "180+1"]
[EndTime "8:58:12 PDT"]
[Termination "ZenBull won on time"]

1. Nf3 {[%clk 0:02:58.6]} 1... d6 {[%clk 0:02:58.1]} 2. d4 {[%clk 0:02:55.5]}
2... Nf6 {[%clk 0:02:55.8]} 3. Nc3 {[%clk 0:02:54.5]} 3... Nbd7 {[%clk
0:02:54.7]} 4. e4 {[%clk 0:02:54.4]} 4... e5 {[%clk 0:02:55.1]} 5. Bc4 {[%clk
0:02:49.7]} 5... Be7 {[%clk 0:02:54.5]} 6. O-O {[%clk 0:02:49.8]} 6... O-O
{[%clk 0:02:54.3]} 7. Re1 {[%clk 0:02:45.9]} 7... c6 {[%clk 0:02:54]} 8. a4
{[%clk 0:02:43.2]} 8... a5 {[%clk 0:02:52.6]} 9. h3 {[%clk 0:02:28.5]} 9... exd4
{[%clk 0:02:51.1]} 10. Nxd4 {[%clk 0:02:27.9]} 10... Nc5 {[%clk 0:02:50.4]} 11.
Nb3 {[%clk 0:02:22.5]} 11... Nxb3 {[%clk 0:02:45.4]} 12. Bxb3 {[%clk 0:02:23.1]}
12... Be6 {[%clk 0:02:43.9]} 13. Bxe6 {[%clk 0:02:22]} 13... fxe6 {[%clk
0:02:44.6]} 14. Be3 {[%clk 0:02:00.1]} 14... d5 {[%clk 0:02:42.7]} 15. e5 {[%clk
0:01:51.9]} 15... Nd7 {[%clk 0:02:41.7]} 16. f4 {[%clk 0:01:52.4]} 16... Bc5
{[%clk 0:02:29.2]} 17. Bxc5 {[%clk 0:01:18.5]} 17... Nxc5 {[%clk 0:02:30.1]} 18.
Qg4 {[%clk 0:01:18.7]} 18... Qe7 {[%clk 0:02:15]} 19. Rad1 {[%clk 0:01:17.2]}
19... Rad8 {[%clk 0:02:13]} 20. b3 {[%clk 0:01:09]} 20... Qf7 {[%clk 0:02:09.8]}
21. Ne2 {[%clk 0:01:06.1]} 21... Ne4 {[%clk 0:02:05.4]} 22. Nd4 {[%clk
0:01:00.9]} 22... Rde8 {[%clk 0:01:59.6]} 23. Rf1 {[%clk 0:00:58.5]} 23... g6
{[%clk 0:01:56]} 24. Rd3 {[%clk 0:00:57.5]} 24... Qe7 {[%clk 0:01:46.1]} 25. h4
{[%clk 0:00:48.4]} 25... Kh8 {[%clk 0:01:44.6]} 26. h5 {[%clk 0:00:48]} 26...
Rg8 {[%clk 0:01:40]} 27. h6 {[%clk 0:00:29.3]} 27... Rgf8 {[%clk 0:01:35]} 28.
Ne2 {[%clk 0:00:12.8]} 28... Qc5+ {[%clk 0:01:31.2]} 29. Nd4 {[%clk 0:00:09.3]}
29... Rf7 {[%clk 0:01:20.4]} 30. Kh2 {[%clk 0:00:06.4]} 30... Qe7 {[%clk
0:01:17.7]} 31. g3 {[%clk 0:00:05.6]} 31... Nc5 {[%clk 0:01:13.1]} 32. Rdf3
{[%clk 0:00:05.4]} 32... Ne4 {[%clk 0:01:13]} 33. Re1 {[%clk 0:00:00.9]} 33...
Nc5 {[%clk 0:01:05.3]} 34. Re2 {[%clk 0:00:01.8]} 34... Qf8 {[%clk 0:01:02.6]}
35. Ref2 {[%clk 0:00:02.3]} 35... Qxh6+ {[%clk 0:01:02.2]} 36. Kg2 {[%clk
0:00:01.2]} 36... Qf8 {[%clk 0:01:02.2]} 37. Rf1 {[%clk 0:00:01.8]} 37... Qe7
{[%clk 0:01:02.3]} 38. Rh1 {[%clk 0:00:02.2]} 38... Rg7 {[%clk 0:01:01.3]} 39.
Rh4 {[%clk 0:00:02.8]} 39... Rf8 {[%clk 0:01:00.7]} 40. Qh3 {[%clk 0:00:03.2]}
40... Rff7 {[%clk 0:01:00.6]} 41. Rh6 {[%clk 0:00:03.6]} 41... Kg8 {[%clk
0:00:56]} 42. Rf1 {[%clk 0:00:00.9]} 42... Rf8 {[%clk 0:00:54]} 43. Rh1 {[%clk
0:00:01.8]} 43... Rff7 {[%clk 0:00:53.8]} 44. Qh4 {[%clk 0:00:02.3]} 44... Qxh4
{[%clk 0:00:53.2]} 45. R1xh4 {[%clk 0:00:03.2]} 45... Re7 {[%clk 0:00:52.9]} 46.
Rh3 {[%clk 0:00:03.8]} 46... Ne4 {[%clk 0:00:53]} 47. Kf3 {[%clk 0:00:03.5]}
47... Nd2+ {[%clk 0:00:53.2]} 48. Ke2 {[%clk 0:00:03.7]} 48... Ne4 {[%clk
0:00:53.5]} 49. g4 {[%clk 0:00:04.2]} 49... Rgf7 {[%clk 0:00:49.3]} 50. Ke3
{[%clk 0:00:04.6]} 50... Nc5 {[%clk 0:00:48.7]} 51. c3 {[%clk 0:00:04.2]} 51...
Nd7 {[%clk 0:00:47.5]} 52. Nf3 {[%clk 0:00:04.4]} 52... Nf8 {[%clk 0:00:45.4]}
53. Ng5 {[%clk 0:00:04.5]} 53... Rg7 {[%clk 0:00:45.8]} 54. Rf3 {[%clk
0:00:04.7]} 54... Nd7 {[%clk 0:00:45.2]} 55. Kd4 {[%clk 0:00:02.6]} 55... b6
{[%clk 0:00:43.5]} 56. b4 {[%clk 0:00:02.7]} 56... c5+ {[%clk 0:00:41.4]} 57.
bxc5 {[%clk 0:00:02.8]} 57... Nxc5 {[%clk 0:00:40.7]} 58. c4 {[%clk 0:00:02.5]}
58... dxc4 {[%clk 0:00:39.7]} 59. Kxc4 {[%clk 0:00:03.3]} 59... Nxa4 {[%clk
0:00:39.7]} 60. Ne4 {[%clk 0:00:03.7]} 60... Rb7 {[%clk 0:00:24]} 61. Nf6+
{[%clk 0:00:04.6]} 61... Kh8 {[%clk 0:00:23.3]} 62. Kb5 {[%clk 0:00:04.7]} 62...
Nc5 {[%clk 0:00:22.2]} 0-1

[Event "Early-Titled-Tuesday-Blitz-March-19-2024"]
[Site "Chess.com"]
[Date "2024.03.19"]
[Round "5"]
[White "igorknyazev"]
[Black "AsaHoffmann"]
[Result "1-0"]
[WhiteElo "2239"]
[BlackElo "2428"]
[TimeControl "180+1"]
[EndTime "8:58:13 PDT"]
[Termination "igorknyazev won on time"]

1. e4 {[%clk 0:03:00.9]} 1... d6 {[%clk 0:02:55.4]} 2. d4 {[%clk 0:03:00]} 2...
Nf6 {[%clk 0:02:55.2]} 3. Nc3 {[%clk 0:02:57.7]} 3... c6 {[%clk 0:02:55.1]} 4.
f4 {[%clk 0:02:56.7]} 4... Qa5 {[%clk 0:02:54.5]} 5. Bd3 {[%clk 0:02:55.1]} 5...
e5 {[%clk 0:02:54]} 6. fxe5 {[%clk 0:02:47.8]} 6... dxe5 {[%clk 0:02:53.3]} 7.
d5 {[%clk 0:02:47.5]} 7... Bc5 {[%clk 0:02:41.8]} 8. Bd2 {[%clk 0:02:38.9]} 8...
Qc7 {[%clk 0:02:38.2]} 9. Nf3 {[%clk 0:02:29.7]} 9... Bg4 {[%clk 0:02:29.7]} 10.
Na4 {[%clk 0:02:26.1]} 10... Nbd7 {[%clk 0:02:28.6]} 11. Nxc5 {[%clk 0:02:19.8]}
11... Nxc5 {[%clk 0:02:28.2]} 12. dxc6 {[%clk 0:02:11]} 12... bxc6 {[%clk
0:02:24.8]} 13. O-O {[%clk 0:01:55.5]} 13... Rd8 {[%clk 0:02:19.3]} 14. Qe2
{[%clk 0:01:51.4]} 14... Nxd3 {[%clk 0:02:14.5]} 15. cxd3 {[%clk 0:01:51.1]}
15... Qd6 {[%clk 0:02:13]} 16. Ba5 {[%clk 0:01:47.6]} 16... Rd7 {[%clk
0:02:00.7]} 17. Rac1 {[%clk 0:01:42.8]} 17... O-O {[%clk 0:01:55.4]} 18. Qe3
{[%clk 0:01:28.8]} 18... Bxf3 {[%clk 0:01:49.1]} 19. gxf3 {[%clk 0:01:25.2]}
19... Rc8 {[%clk 0:01:45.1]} 20. Rcd1 {[%clk 0:01:04.7]} 20... Nh5 {[%clk
0:01:40.3]} 21. d4 {[%clk 0:01:00.5]} 21... exd4 {[%clk 0:01:23.3]} 22. Qg5
{[%clk 0:01:00.8]} 22... Qg6 {[%clk 0:01:12.4]} 23. Qxg6 {[%clk 0:00:56.7]}
23... hxg6 {[%clk 0:01:12]} 24. f4 {[%clk 0:00:57.2]} 24... Nf6 {[%clk
0:01:10.9]} 25. e5 {[%clk 0:00:53.7]} 25... Ng4 {[%clk 0:01:10.6]} 26. Rd3
{[%clk 0:00:46]} 26... c5 {[%clk 0:01:09.5]} 27. b3 {[%clk 0:00:45.3]} 27... c4
{[%clk 0:01:06.4]} 28. bxc4 {[%clk 0:00:44.9]} 28... Rxc4 {[%clk 0:01:06.4]} 29.
Bd2 {[%clk 0:00:32.3]} 29... g5 {[%clk 0:00:57.4]} 30. h3 {[%clk 0:00:31.6]}
30... gxf4 {[%clk 0:00:35.3]} 31. hxg4 {[%clk 0:00:28.3]} 31... g5 {[%clk
0:00:35]} 32. a3 {[%clk 0:00:20.4]} 32... Rd5 {[%clk 0:00:33.9]} 33. Re1 {[%clk
0:00:19.6]} 33... Kg7 {[%clk 0:00:32.8]} 34. e6 {[%clk 0:00:19.5]} 34... fxe6
{[%clk 0:00:30.5]} 35. Rxe6 {[%clk 0:00:19.8]} 35... Kf7 {[%clk 0:00:30.5]} 36.
Re4 {[%clk 0:00:19.6]} 36... a5 {[%clk 0:00:27.5]} 37. Kg2 {[%clk 0:00:16.9]}
37... Rc2 {[%clk 0:00:25.6]} 38. Rexd4 {[%clk 0:00:16.6]} 38... Rxd4 {[%clk
0:00:24.6]} 39. Rxd4 {[%clk 0:00:16.9]} 39... Ke6 {[%clk 0:00:24.8]} 40. Kf3
{[%clk 0:00:16.7]} 40... Ke5 {[%clk 0:00:24.3]} 41. Rd3 {[%clk 0:00:15.5]} 41...
Ra2 {[%clk 0:00:21.9]} 42. Bc3+ {[%clk 0:00:15.9]} 42... Ke6 {[%clk 0:00:21.8]}
43. Bxa5 {[%clk 0:00:16.7]} 43... Rh2 {[%clk 0:00:19.2]} 44. Bb4 {[%clk
0:00:16.3]} 44... Rh3+ {[%clk 0:00:18.2]} 45. Ke4 {[%clk 0:00:17]} 45... Rh4
{[%clk 0:00:16.2]} 46. Rd6+ {[%clk 0:00:16.2]} 46... Kf7 {[%clk 0:00:16.1]} 47.
Kf5 {[%clk 0:00:14.6]} 47... f3 {[%clk 0:00:16.2]} 48. Rd7+ {[%clk 0:00:13.7]}
48... Ke8 {[%clk 0:00:16.1]} 49. Re7+ {[%clk 0:00:13.8]} 49... Kd8 {[%clk
0:00:16.1]} 50. Kxg5 {[%clk 0:00:13.5]} 50... Rh1 {[%clk 0:00:10.6]} 51. Rf7
{[%clk 0:00:14.2]} 51... Rf1 {[%clk 0:00:09.6]} 52. Bc5 {[%clk 0:00:12]} 52...
Ke8 {[%clk 0:00:08.6]} 53. Rf5 {[%clk 0:00:12.1]} 53... Kd7 {[%clk 0:00:06.8]}
54. Kf6 {[%clk 0:00:12.3]} 54... Kc6 {[%clk 0:00:06.3]} 55. Be3 {[%clk
0:00:12.7]} 55... Kd6 {[%clk 0:00:05.7]} 56. g5 {[%clk 0:00:12.7]} 56... Kd7
{[%clk 0:00:04.8]} 57. g6 {[%clk 0:00:12.7]} 57... Rg1 {[%clk 0:00:03.1]} 58. g7
{[%clk 0:00:12.8]} 58... Rg3 {[%clk 0:00:01.6]} 59. Bg5 {[%clk 0:00:11.5]} 1-0